bitfinex/quotes_SOLUSD_20240705
["timestamp","ask_amount","ask_price","bid_price","bid_amount"]
[1720174030562,1.97939094,126.34,126.26,200.0]
[1720174030762,1.97913663,126.35,126.27,0.17]
[1720174030991,7.9145,126.35,126.28,100.0]
[1720174031189,1.97904181,126.34,126.28,100.0]
[1720174031388,1.97904181,126.38,126.28,100.0]
[1720174031593,1.97904181,126.38,126.27,100.17]
[1720174031594,1.97904181,126.38,126.27,0.17]
[1720174031808,1.97934619,126.37,126.27,100.0]
[1720174031975,7.915,126.35,126.27,100.0]
[1720174032173,1.97929695,126.34,126.27,100.0]
[1720174032671,9.89449695,126.34,126.26,0.17]
[1720174032985,21.97929686,126.33,126.27,100.0]
[1720174033194,20.0,126.33,126.27,200.0]
[1720174033394,7.914,126.36,126.28,0.17]
[1720174033583,21.97909296,126.35,126.25,100.0]
[1720174033782,20.0,126.38,126.25,100.0]
[1720174033783,7.9162,126.33,126.26,0.17]
[1720174033992,21.97939577,126.32,126.26,0.17]
[1720174034193,1.97942535,126.31,126.26,0.17]
[1720174034378,1.97942535,126.31,126.23,100.0]
[1720174034586,1.97971779,126.31,126.26,100.0]
[1720174034780,1.97971779,126.31,126.23,100.0]
[1720174035006,7.9169,126.32,126.23,100.0]
[1720174035203,29.89720821,126.31,126.23,100.0]
[1720174035385,1.97972349,126.3,126.25,100.0]
[1720174035702,7.9162,126.33,126.25,100.0]
[1720174036004,29.89648024,126.32,126.25,100.0]
[1720174036303,29.89648024,126.32,126.24,0.17]
[1720174036304,9.89677897,126.31,126.24,0.17]
[1720174036483,20.0,126.3,126.24,0.17]
[1720174036688,1.97970495,126.29,126.24,0.17]
[1720174036888,1.97970495,126.29,126.23,100.0]
[1720174037090,1.97970495,126.29,126.2,100.0]
[1720174037091,20.0,126.3,126.25,100.0]
[1720174037412,20.0,126.31,126.27,100.0]
[1720174037613,21.97973482,126.35,126.27,100.0]
[1720174037901,1.97915713,126.34,126.27,100.0]
[1720174038088,14.11474339,126.37,126.29,100.0]
[1720174038287,1.97886679,126.36,126.31,100.0]
[1720174038513,9.8913759,126.38,126.31,100.0]
[1720174038685,15.4858769,126.41,126.31,100.0]
[1720174038686,1.97868198,126.37,126.31,100.0]
[1720174039016,9.88993204,126.4,126.33,100.0]
[1720174039305,1.97853204,126.4,126.35,100.0]
[1720174040811,21.97853204,126.4,126.35,100.0]
[1720174041107,11.21753663,126.41,126.37,100.0]
[1720174041306,9.2394,126.41,126.34,200.0]
[1720174041509,7.909,126.44,126.37,100.0]
[1720174041832,1.97771923,126.43,126.37,100.0]
[1720174042008,9.88761923,126.43,126.37,100.0]
[1720174042206,7.9089,126.44,126.37,100.0]
[1720174042389,20.0,126.43,126.37,100.0]
[1720174042705,20.0,126.43,126.38,0.17]
[1720174042898,20.0,126.43,126.38,100.17]
[1720174043101,1.97765868,126.45,126.38,100.17]
[1720174043411,1.97765868,126.45,126.38,0.17]
[1720174043706,1.97765868,126.45,126.37,0.17]
[1720174043911,9.88645868,126.45,126.37,0.17]
[1720174044111,7.9091,126.44,126.37,0.17]
[1720174044411,9.88728269,126.43,126.37,0.17]
[1720174044709,7.9084,126.45,126.38,100.0]
[1720174044910,1.97758007,126.44,126.37,0.17]
[1720174045119,1.97758007,126.44,126.36,200.0]
[1720174045120,1.97776668,126.43,126.36,100.0]
[1720174045413,9.88517761,126.46,126.38,100.0]
[1720174045715,21.97735381,126.45,126.39,100.0]
[1720174045890,1.97735381,126.45,126.39,100.0]
[1720174048406,20.0,126.39,126.35,100.0]
[1720174048590,1.97796572,126.41,126.33,100.0]
[1720174048792,1.97796572,126.41,126.34,0.17]
[1720174049009,7.9103,126.42,126.33,100.0]
[1720174049205,21.97801921,126.41,126.33,100.0]
[1720174049433,21.97801921,126.41,126.34,100.0]
[1720174049596,20.0,126.41,126.35,100.0]
[1720174049934,1.97782531,126.4,126.33,100.0]
[1720174050103,1.97782531,126.4,126.34,100.0]
[1720174050426,20.0,126.41,126.35,100.17]
[1720174051011,7.9089,126.44,126.35,100.17]
[1720174051209,21.9776844,126.43,126.35,100.17]
[1720174051544,21.9776844,126.43,126.35,0.17]
[1720174051699,21.9776844,126.43,126.31,100.0]
[1720174051898,7.9104,126.42,126.31,100.0]
[1720174052104,21.97814229,126.41,126.33,100.0]
[1720174052317,1.97786087,126.42,126.33,200.0]
[1720174053020,20.0,126.43,126.37,100.0]
[1720174053198,21.97745651,126.46,126.39,100.0]
[1720174053394,11.51759841,126.47,126.4,100.17]
[1720174053799,9.5404,126.47,126.41,200.0]
[1720174054017,9.5404,126.47,126.42,0.17]
[1720174054205,9.5404,126.47,126.4,0.17]
[1720174055024,20.0,126.46,126.4,0.17]
[1720174055518,20.0,126.47,126.4,0.17]
[1720174055916,21.97695191,126.48,126.4,0.17]
[1720174056116,9.88365191,126.48,126.4,0.17]
[1720174056317,20.0,126.47,126.4,0.17]
[1720174057214,1.97677806,126.5,126.43,123.82]
[1720174057560,1.97632526,126.52,126.44,0.17]
[1720174057910,7.9053,126.5,126.44,0.17]
[1720174058100,7.9045,126.51,126.44,0.17]
[1720174058527,1.97633133,126.5,126.44,0.17]
[1720174059105,1.97633133,126.5,126.44,100.17]
[1720174059424,1.97649704,126.51,126.44,0.17]
[1720174059633,1.97626873,126.52,126.45,100.0]
[1720174059839,1.97623547,126.51,126.44,0.17]
[1720174060325,7.9062,126.49,126.41,100.0]
[1720174060538,20.0,126.48,126.42,0.17]
[1720174060717,20.0,126.48,126.44,100.0]
[1720174060898,20.0,126.48,126.45,0.17]
[1720174061103,20.0,126.51,126.4,100.0]
[1720174061322,7.9059,126.49,126.42,100.0]
[1720174061526,21.97689996,126.48,126.4,100.0]
[1720174061705,20.0,126.48,126.4,100.0]
[1720174062115,20.0,126.51,126.4,100.0]
[1720174062319,20.0,126.51,126.37,121.796]
[1720174062320,7.9076,126.46,126.38,100.0]
[1720174062504,21.97731646,126.45,126.38,100.0]
[1720174063623,20.0,126.44,126.38,100.0]
[1720174063937,20.0,126.46,126.41,100.0]
[1720174064120,1.97711777,126.48,126.41,100.0]
[1720174064121,1.97711777,126.48,126.42,0.17]
[1720174064301,1.97676542,126.49,126.42,0.17]
[1720174064504,1.97676542,126.49,126.42,100.17]
[1720174064734,1.97676542,126.49,126.42,200.17]
[1720174065234,1.97672319,126.51,126.42,223.99]
[1720174065634,1.97672319,126.51,126.44,100.0]
[1720174065833,7.9051,126.5,126.42,0.17]
[1720174066003,25.79738449,126.5,126.38,100.0]
[1720174066209,19.7663,126.48,126.36,100.0]
[1720174066431,7.9093,126.44,126.36,100.0]
[1720174066729,21.97765691,126.43,126.36,100.0]
[1720174067146,20.0,126.43,126.36,100.0]
[1720174067315,21.97747211,126.45,126.36,200.0]
[1720174067815,21.97747211,126.45,126.36,223.82]
[1720174068034,7.9089,126.44,126.36,100.0]
[1720174068219,20.0,126.43,126.36,200.0]
[1720174068434,20.0,126.45,126.36,200.0]
[1720174068613,27.9082,126.45,126.36,200.0]
[1720174068818,7.909,126.44,126.34,223.82]
[1720174069033,21.9776459,126.43,126.34,223.82]
[1720174069233,21.9776459,126.43,126.36,100.0]
[1720174069619,20.0,126.42,126.37,100.0]
[1720174069839,1.9776459,126.43,126.35,100.0]
[1720174070346,1.9776459,126.43,126.36,0.17]
[1720174070842,1.9776459,126.43,126.35,100.0]
[1720174071136,9.8874459,126.43,126.33,23.1362]
[1720174071317,27.9103,126.42,126.32,223.82]
[1720174071522,21.97798284,126.41,126.35,100.0]
[1720174072130,20.0,126.41,126.35,100.0]
[1720174072332,1.97797999,126.43,126.36,0.17]
[1720174072841,27.909,126.44,126.39,100.0]
[1720174072842,20.0,126.44,126.39,100.0]
[1720174073040,21.9777434,126.45,126.39,100.0]
[1720174073214,21.9777434,126.45,126.37,100.0]
[1720174073422,21.9777434,126.45,126.38,0.17]
[1720174074522,21.9777434,126.45,126.34,123.82]
[1720174074845,21.9777434,126.45,126.38,100.0]
[1720174075148,21.9777434,126.45,126.38,200.0]
[1720174075325,21.9777434,126.45,126.4,100.0]
[1720174075521,20.0,126.45,126.4,100.0]
[1720174075725,8.9113,126.46,126.41,0.17]
[1720174076035,8.9113,126.46,126.38,100.0]
[1720174076212,1.97709253,126.45,126.39,0.17]
[1720174076416,1.97709253,126.45,126.4,100.0]
[1720174076612,1.97709253,126.45,126.39,0.17]
[1720174076856,1.9772491,126.48,126.39,123.99]
[1720174077014,1.97678792,126.48,126.4,23.82]
[1720174077215,2.58713641,126.49,126.41,0.17]
[1720174077554,32.83213941,126.48,126.35,100.0]
[1720174077713,7.908,126.46,126.35,100.0]
[1720174078128,30.8555,126.48,126.35,100.0]
[1720174078335,2.14760893,126.47,126.35,100.0]
[1720174078544,22.14760893,126.47,126.35,100.0]
[1720174079234,22.14760893,126.47,126.37,100.0]
[1720174079441,7.9084,126.45,126.37,100.0]
[1720174079618,21.97756793,126.44,126.37,100.0]
[1720174079813,20.0,126.44,126.37,100.0]
[1720174080014,20.0,126.44,126.38,0.17]
[1720174080226,20.0,126.44,126.34,100.0]
[1720174080227,1.97736319,126.43,126.34,100.0]
[1720174080557,1.97786427,126.44,126.37,100.0]
[1720174080724,1.97786427,126.44,126.37,200.0]
[1720174080922,20.0,126.44,126.39,100.0]
[1720174081122,20.0,126.47,126.36,100.0]
[1720174081123,1.97724193,126.43,126.36,100.0]
[1720174081340,7.9084,126.45,126.36,123.82]
[1720174081638,1.97758047,126.46,126.38,200.0]
[1720174081876,5.21737295,126.47,126.35,200.0]
[1720174082050,7.9084,126.45,126.37,200.0]
[1720174082226,1.97756287,126.44,126.37,200.0]
[1720174082628,9.88543537,126.46,126.38,0.17]
[1720174082937,20.0,126.45,126.38,0.17]
[1720174083131,1.97743473,126.44,126.38,0.17]
[1720174084042,20.0,126.45,126.38,0.17]
[1720174084238,21.77137659,126.47,126.39,100.0]
[1720174084239,21.97732532,126.46,126.39,100.0]
[1720174085258,29.88512532,126.46,126.39,100.0]
[1720174085551,21.97732532,126.46,126.39,200.0]
[1720174085751,20.0,126.46,126.41,100.0]
[1720174085955,21.97729876,126.47,126.41,100.0]
[1720174086155,20.0,126.47,126.41,100.0]
[1720174086336,30.8555,126.48,126.41,100.0]
[1720174086642,30.8555,126.48,126.41,200.0]
[1720174087063,8.9803,126.48,126.43,100.0]
[1720174087263,1.97688631,126.49,126.41,100.0]
[1720174087555,1.97688631,126.49,126.43,100.0]
[1720174087759,8.64690364,126.5,126.42,0.17]
[1720174087760,18.52872471,126.5,126.42,0.17]
[1720174087938,18.52872471,126.5,126.42,100.17]
[1720174088251,18.52872471,126.5,126.42,0.17]
[1720174089160,18.52872471,126.5,126.42,100.17]
[1720174089761,20.0,126.49,126.43,100.0]
[1720174090548,20.0,126.49,126.42,100.17]
[1720174091241,1.97663223,126.48,126.42,0.17]
[1720174091547,21.97674313,126.49,126.42,0.17]
[1720174091942,21.97674313,126.49,126.42,100.17]
[1720174092151,1.97673552,126.48,126.42,100.17]
[1720174092351,1.97673885,126.48,126.39,100.0]
[1720174092540,7.9074,126.47,126.39,100.0]
[1720174092752,21.97723704,126.46,126.39,100.0]
[1720174093051,1.97723341,126.45,126.39,100.0]
[1720174093857,1.97723341,126.45,126.36,100.0]
[1720174094062,9.88563341,126.45,126.36,100.0]
[1720174094263,21.97763152,126.44,126.36,100.0]
[1720174094461,1.97761718,126.43,126.38,100.0]
[1720174094839,20.0,126.45,126.38,100.0]
[1720174095143,1.97739408,126.44,126.38,100.0]
[1720174095339,21.97744121,126.46,126.38,100.0]
[1720174095559,20.0,126.46,126.4,200.0]
[1720174095756,20.0,126.46,126.41,0.17]
[1720174095966,1.97730025,126.48,126.41,0.17]
[1720174097240,1.97730025,126.48,126.42,100.0]
[1720174097772,1.97730025,126.48,126.41,0.17]
[1720174098137,9.88370025,126.48,126.41,0.17]
[1720174098336,20.0,126.47,126.42,100.0]
[1720174099339,9.3309,126.54,126.47,200.0]
[1720174099580,9.3309,126.54,126.51,100.0]
[1720174099768,24.71713088,126.56,126.51,100.0]
[1720174100064,22.7416,126.56,126.51,100.0]
[1720174101258,20.0,126.55,126.51,100.0]
[1720174102246,20.0,126.55,126.48,0.17]
[1720174102247,1.975495,126.54,126.48,100.17]
[1720174102465,20.0,126.55,126.5,100.0]
[1720174104048,20.0,126.55,126.47,200.0]
[1720174104049,1.97574451,126.54,126.47,200.0]
[1720174104445,21.97604141,126.55,126.49,100.0]
[1720174104670,21.97577164,126.55,126.49,100.0]
[1720174106169,7.9036,126.53,126.47,100.0]
[1720174106469,20.0,126.52,126.49,100.0]
[1720174107151,21.97588587,126.55,126.51,100.0]
[1720174107784,21.97588587,126.55,126.49,100.0]
[1720174108146,29.87838587,126.55,126.47,200.0]
[1720174108352,29.87838587,126.55,126.47,100.0]
[1720174108353,21.97588587,126.55,126.47,100.0]
[1720174108648,21.97588587,126.55,126.47,200.0]
[1720174109059,29.87798587,126.55,126.47,100.0]
[1720174109258,21.97588587,126.55,126.47,100.0]
[1720174109566,29.87808587,126.55,126.47,100.0]
[1720174110764,21.97588587,126.55,126.47,100.0]
[1720174111168,7.903,126.54,126.47,100.0]
[1720174111366,21.97617205,126.53,126.47,100.0]
[1720174111563,20.0,126.52,126.47,100.0]
[1720174111760,1.97617205,126.53,126.49,100.0]
[1720174111962,1.97617205,126.53,126.44,100.0]
[1720174112157,1.97617205,126.53,126.46,100.0]
[1720174112359,20.0,126.53,126.46,100.0]
[1720174112553,27.9022,126.55,126.46,100.0]
[1720174112762,7.9033,126.53,126.44,100.0]
[1720174112972,21.9763987,126.52,126.44,100.0]
[1720174113157,1.97638363,126.51,126.44,100.0]
[1720174113654,1.97638363,126.51,126.42,100.0]
[1720174113887,9.6418,126.5,126.45,100.0]
[1720174114182,21.97670192,126.49,126.45,100.0]
[1720174114680,1.97670149,126.48,126.42,100.0]
[1720174115071,43.93768457,126.49,126.42,100.0]
[1720174115458,41.9608,126.49,126.44,100.0]
[1720174115661,20.0,126.49,126.42,100.0]
[1720174115986,20.0,126.49,126.44,100.0]
[1720174116283,21.97639923,126.49,126.42,200.0]
[1720174116496,21.97639923,126.49,126.44,100.0]
[1720174116786,20.0,126.49,126.46,100.0]
[1720174117160,20.0,126.49,126.44,200.0]
[1720174117355,21.97670082,126.52,126.44,100.0]
[1720174117560,1.97645523,126.51,126.44,100.0]
[1720174117969,9.88115523,126.51,126.42,100.0]
[1720174118166,20.0,126.5,126.42,100.0]
[1720174118376,1.97679036,126.49,126.44,100.0]
[1720174118570,20.0,126.5,126.46,100.0]
[1720174118571,21.97663723,126.5,126.46,100.0]
[1720174118781,21.97663528,126.52,126.46,100.0]
[1720174119265,1.97663887,126.51,126.46,100.0]
[1720174119673,1.97663887,126.51,126.42,100.0]
[1720174119674,1.97663887,126.51,126.44,100.0]
[1720174120267,9.88113887,126.51,126.44,100.0]
[1720174120473,20.0,126.5,126.44,100.0]
[1720174120775,1.97663879,126.49,126.42,100.0]
[1720174121172,20.0,126.52,126.42,100.0]
[1720174121173,1.97675949,126.48,126.42,100.0]
[1720174122290,1.97696604,126.49,126.44,100.0]
[1720174122599,1.97671101,126.51,126.44,100.0]
[1720174124280,9.88131101,126.51,126.42,100.0]
[1720174124501,27.9051,126.5,126.42,100.0]
[1720174124784,1.97698327,126.49,126.42,100.0]
[1720174125393,1.97681506,126.48,126.42,100.0]
[1720174125591,21.97681506,126.48,126.42,100.0]
[1720174125794,20.0,126.48,126.42,100.0]
[1720174126003,21.9768269,126.5,126.42,100.0]
[1720174126304,1.9768269,126.5,126.42,100.0]
[1720174126500,9.0905,126.49,126.38,100.0]
[1720174126802,29.88420515,126.48,126.39,100.0]
[1720174127299,21.97740515,126.48,126.41,100.0]
[1720174127498,21.97740515,126.48,126.43,100.0]
[1720174131217,20.0,126.48,126.43,100.0]
[1720174132832,20.0,126.48,126.45,100.0]
[1720174135196,20.0,126.48,126.43,100.0]
[1720174135383,20.0,126.48,126.45,100.0]
[1720174135833,7.9074,126.47,126.41,100.0]
[1720174136026,20.0,126.46,126.41,100.0]
[1720174136193,20.0,126.46,126.44,100.0]
[1720174136530,1.9765851,126.48,126.44,100.0]
[1720174136531,21.9765851,126.48,126.44,100.0]
[1720174136817,20.0,126.48,126.44,100.0]
[1720174137015,20.0,126.48,126.42,100.0]
[1720174137016,21.97671276,126.48,126.42,100.0]
[1720174137316,20.0,126.48,126.44,100.0]
[1720174138184,20.0,126.48,126.46,100.0]
[1720174138515,31.9278,126.53,126.48,100.0]
[1720174138516,1.97659325,126.52,126.48,100.0]
[1720174138822,33.2554,126.53,126.48,100.0]
[1720174138991,33.2554,126.53,126.47,100.0]
[1720174139199,1.97615983,126.52,126.47,100.0]
[1720174139893,21.97615983,126.52,126.47,100.0]
[1720174140095,20.0,126.52,126.47,100.0]
[1720174140512,21.9761599,126.52,126.49,100.0]
[1720174140814,20.0,126.52,126.49,100.0]
[1720174141315,26.17228441,126.57,126.53,100.0]
[1720174141503,33.3058,126.57,126.53,100.0]
[1720174142200,9.1097,126.57,126.55,100.0]
[1720174142589,24.42028718,126.6,126.55,100.0]
[1720174142791,7.9,126.59,126.52,100.0]
[1720174143012,1.97548659,126.58,126.52,100.0]
[1720174143815,0.17,126.57,126.46,200.0]
[1720174143997,9.0166,126.55,126.48,100.0]
[1720174144198,1.97614566,126.54,126.48,100.0]
[1720174145004,21.97614566,126.54,126.48,100.0]
[1720174145324,21.97614566,126.54,126.44,23.82]
[1720174145325,30.3738,126.53,126.44,100.0]
[1720174145491,21.97647305,126.52,126.47,100.0]
[1720174145917,20.0,126.52,126.47,200.0]
[1720174146221,20.0,126.52,126.49,100.0]
[1720174146893,9.0166,126.55,126.49,100.0]
[1720174147207,9.0166,126.55,126.51,100.0]
[1720174147813,9.0166,126.55,126.48,100.0]
[1720174148126,9.0166,126.55,126.5,100.0]
[1720174148498,9.0166,126.55,126.53,100.0]
[1720174148816,24.101,126.57,126.53,100.0]
[1720174149320,9.4715,126.59,126.55,100.0]
[1720174149517,1.97518254,126.58,126.51,100.0]
[1720174149906,11.44669219,126.59,126.54,100.0]
[1720174150097,9.4715,126.59,126.56,100.0]
[1720174150713,23.9571,126.61,126.56,100.0]
[1720174151219,2.84376051,126.62,126.58,100.0]
[1720174151420,0.8688985,126.62,126.58,100.0]
[1720174151728,0.8688985,126.62,126.6,100.0]
[1720174152538,0.8688985,126.62,126.61,100.0]
[1720174152852,0.8688985,126.62,126.6,100.0]
[1720174153196,0.8688985,126.62,126.61,123.82]
[1720174153512,2.23716758,126.69,126.66,100.0]
[1720174153707,2.23716758,126.69,126.63,100.0]
[1720174154196,2.23716758,126.69,126.61,200.0]
[1720174154420,2.23716758,126.69,126.63,100.0]
[1720174154608,1.97370656,126.68,126.61,100.0]
[1720174155229,1.97370656,126.68,126.59,100.0]
[1720174155406,24.0191,126.67,126.56,200.0]
[1720174155725,9.1344,126.65,126.56,200.0]
[1720174156025,9.1344,126.65,126.53,22.9868]
[1720174156026,20.0,126.64,126.59,100.0]
[1720174156523,20.0,126.64,126.53,28.15703085]
[1720174156524,1.9743231,126.63,126.54,100.0]
[1720174156697,27.8964,126.64,126.53,100.0]
[1720174156698,1.97469667,126.62,126.53,100.0]
[1720174156897,1.97469667,126.62,126.55,100.0]
[1720174157121,1.97469667,126.62,126.57,100.0]
[1720174157303,1.97469667,126.62,126.55,100.0]
[1720174157500,1.97469667,126.62,126.57,100.0]
[1720174157715,1.97467332,126.63,126.59,100.0]
[1720174158021,20.0,126.64,126.59,100.0]
[1720174158022,9.1344,126.65,126.59,100.0]
[1720174158329,9.1344,126.65,126.59,200.0]
[1720174158508,1.97411156,126.64,126.59,100.0]
[1720174159917,21.97411156,126.64,126.55,100.0]
[1720174160116,29.87071156,126.64,126.55,100.0]
[1720174160425,21.97411156,126.64,126.55,100.0]
[1720174160722,21.97411156,126.64,126.59,100.0]
[1720174160899,20.0,126.64,126.59,100.0]
[1720174161106,20.0,126.64,126.55,100.0]
[1720174161107,1.97438035,126.63,126.57,100.0]
[1720174161306,9.1344,126.65,126.51,9.5594]
[1720174161307,9.1344,126.65,126.6,100.0]
[1720174161711,24.0191,126.67,126.62,100.0]
[1720174161936,24.0191,126.67,126.64,100.0]
[1720174162131,11.33556758,126.69,126.64,100.0]
[1720174162317,1.97363282,126.68,126.61,200.0]
[1720174162625,1.97363282,126.68,126.63,100.0]
[1720174162810,1.97363282,126.68,126.61,100.0]
[1720174163127,1.97363282,126.68,126.63,100.0]
[1720174163629,13.30932324,126.69,126.63,100.0]
[1720174163809,11.33556758,126.69,126.63,200.0]
[1720174164124,1.97352053,126.68,126.63,100.0]
[1720174164324,11.33556758,126.69,126.63,100.0]
[1720174164528,1.97364613,126.68,126.61,200.0]
[1720174164818,1.97363225,126.68,126.61,100.0]
[1720174165031,1.97363225,126.68,126.59,200.0]
[1720174165210,1.97363225,126.68,126.62,100.0]
[1720174165609,21.97363225,126.68,126.62,100.0]
[1720174166207,21.97363225,126.68,126.6,100.0]
[1720174166540,8.0645,126.67,126.6,100.0]
[1720174166827,1.97430032,126.66,126.6,100.0]
[1720174167006,1.97429946,126.65,126.56,100.0]
[1720174167205,32.67209946,126.65,126.56,100.0]
[1720174167402,20.0,126.64,126.58,100.0]
[1720174167608,1.97462999,126.63,126.58,100.0]
[1720174167843,1.9746598,126.62,126.56,100.0]
[1720174168430,9.0403,126.61,126.56,100.0]
[1720174168646,1.97486413,126.6,126.56,100.0]
[1720174168803,21.97486413,126.6,126.56,100.0]
[1720174169317,40.29010786,126.69,126.56,100.0]
[1720174169525,0.80845532,126.68,126.56,100.0]
[1720174169827,0.80845532,126.68,126.55,100.0]
[1720174169828,0.80845532,126.68,126.59,100.0]
[1720174170531,8.70285532,126.68,126.59,100.0]
[1720174170732,7.8952,126.66,126.59,100.0]
[1720174170945,0.80845532,126.65,126.59,100.0]
[1720174171114,0.80845532,126.65,126.58,100.0]
[1720174171307,7.8939,126.68,126.58,100.0]
[1720174171308,0.80845532,126.67,126.58,100.0]
[1720174171507,8.70305532,126.67,126.6,100.0]
[1720174171729,0.80845532,126.67,126.6,100.0]
[1720174172337,9.73425532,126.67,126.6,100.0]
[1720174173014,9.73425532,126.67,126.62,100.0]
[1720174173320,20.0,126.66,126.62,100.0]
[1720174173517,0.80845532,126.65,126.62,100.0]
[1720174175144,20.0,126.66,126.62,100.0]
[1720174175448,20.0,126.66,126.64,100.0]
[1720174175610,20.80845532,126.68,126.64,100.0]
[1720174175812,0.80845532,126.68,126.62,100.0]
[1720174176012,0.80845532,126.68,126.64,100.0]
[1720174176212,9.4004305,126.71,126.66,100.0]
[1720174176615,0.80845532,126.7,126.66,100.0]
[1720174177015,7.8938,126.69,126.63,100.0]
[1720174177318,9.4004305,126.71,126.63,100.0]
[1720174177319,0.80845532,126.68,126.63,100.0]
[1720174177745,8.0649,126.67,126.63,100.0]
[1720174177943,20.80845532,126.66,126.63,100.0]
[1720174178154,0.80845532,126.65,126.63,100.0]
[1720174179026,0.80845532,126.66,126.63,100.0]
[1720174179727,20.80845532,126.68,126.63,100.0]
[1720174179923,0.80845532,126.68,126.63,100.0]
[1720174180529,20.80845532,126.68,126.63,100.0]
[1720174181141,0.80845532,126.7,126.65,100.0]
[1720174183047,0.80845532,126.7,126.67,100.0]
[1720174183341,20.80845532,126.7,126.67,100.0]
[1720174183523,20.0,126.7,126.67,100.0]
[1720174183839,20.0,126.7,126.68,100.0]
[1720174184039,1.02098582,126.71,126.68,100.0]
[1720174184252,0.2125305,126.71,126.68,100.0]
[1720174184423,0.2125305,126.71,126.66,100.0]
[1720174184744,0.2125305,126.71,126.68,100.0]
[1720174186846,0.2125305,126.71,126.66,100.0]
[1720174188125,0.2125305,126.71,126.7,100.0]
[1720174188328,0.04693919,126.74,126.72,100.0]
[1720174189924,0.04693919,126.74,126.69,100.0]
[1720174190234,0.85539451,126.74,126.69,100.0]
[1720174190438,0.85539451,126.74,126.67,100.0]
[1720174190634,0.85539451,126.74,126.69,100.0]
[1720174190831,20.85539451,126.74,126.69,100.0]
[1720174191038,20.85539451,126.74,126.67,100.0]
[1720174191435,20.85539451,126.74,126.69,100.0]
[1720174191846,20.04693919,126.74,126.71,100.0]
[1720174192656,0.04693919,126.74,126.73,100.0]
[1720174193730,0.04693919,126.74,126.7,100.0]
[1720174196248,0.04693919,126.74,126.72,100.0]
[1720174197357,0.04693919,126.74,126.7,100.0]
[1720174198453,0.8688985,126.75,126.7,100.0]
[1720174198659,24.61209301,126.78,126.7,100.0]
[1720174198844,16.72429301,126.78,126.73,100.0]
[1720174199652,8.8424,126.79,126.75,100.0]
[1720174200845,23.6416,126.81,126.75,100.0]
[1720174201060,23.6416,126.81,126.71,131.3961]
[1720174201061,23.6416,126.81,126.71,9.0267]
[1720174201240,7.8876,126.79,126.69,100.0]
[1720174201438,7.8876,126.79,126.71,100.0]
[1720174201439,7.887,126.79,126.71,100.0]
[1720174201749,17.4321,126.8,126.71,100.0]
[1720174201988,27.887,126.79,126.71,100.0]
[1720174202329,0.17,126.78,126.71,100.0]
[1720174202557,27.8874,126.79,126.71,100.0]
[1720174203267,20.0,126.79,126.71,100.0]
[1720174205548,7.8896,126.75,126.69,100.0]
[1720174205886,20.0,126.79,126.73,100.0]
[1720174207059,20.0,126.79,126.75,100.0]